fUST/lending_fUST_20250607
["ID","MTS","AMOUNT","RATE_DAILY","PERIOD"]
[364910798,1749295835844,-440.0,0.00019178,2]
[364910799,1749295835856,-695.59,0.00019178,2]
[364910800,1749295835868,-440.0,0.00019178,2]
[364910801,1749295835880,-440.0,0.00019178,2]
[364910802,1749295835892,-440.0,0.00019178,2]
[364910803,1749295835904,-430.59964939,0.00019178,2]
[364910804,1749295835916,-566.43,0.00019178,2]
[364910805,1749295835927,-1169.88,0.00019178,2]
[364910806,1749295835940,-440.0,0.00019178,2]
[364910807,1749295835952,-440.0,0.00019178,2]
[364910808,1749295835965,-440.0,0.00019178,2]
[364910809,1749295835978,-440.0,0.00019178,2]
[364910810,1749295835990,-440.0,0.00019178,2]
[364910811,1749295836002,-440.0,0.00019178,2]
[364910812,1749295836013,-440.0,0.00019178,2]
[364910813,1749295836026,-440.0,0.00019178,2]
[364910814,1749295836038,-410.0,0.00019178,2]
[364910815,1749295836049,-440.0,0.00019178,2]
[364910816,1749295836061,-440.0,0.00019178,2]
[364910817,1749295836072,-440.0,0.00019178,2]
[364910818,1749295836084,-770.23,0.00019178,2]
[364910819,1749295836096,-440.0,0.00019178,2]
[364910820,1749295836108,-440.0,0.00019178,2]
[364910821,1749295836120,-440.0,0.00019178,2]
[364910822,1749295836133,-440.0,0.00019178,2]
[364910823,1749295836145,-473.22660405,0.00019178,2]
[364910824,1749295836156,-982.15,0.00019178,2]
[364910825,1749295836169,-440.0,0.00019178,2]
[364910826,1749295836181,-440.0,0.00019178,2]
[364910827,1749295836193,-440.0,0.00019178,2]
[364910828,1749295836208,-440.0,0.00019178,2]
[364910829,1749295836221,-440.0,0.00019178,2]
[364910830,1749295836233,-430.0,0.00019178,2]
[364910831,1749295836246,-440.0,0.00019178,2]
[364910832,1749295836260,-440.0,0.00019178,2]
[364910833,1749295836275,-372.02518328,0.00019178,2]
[364910834,1749295836293,-440.0,0.00019178,2]
[364910835,1749295836311,-440.0,0.00019178,2]
[364910836,1749295836480,-525.1,0.00019178,2]
[364910837,1749295836504,-441.84550729,0.00019178,2]
[364910838,1749295836516,-440.0,0.00019178,2]
[364910839,1749295836525,-446.5,0.00019178,2]
[364910840,1749295836535,-440.0,0.00019178,2]
[364910841,1749295836545,-198.241379,0.00019178,2]
[364910842,1749295836555,-153.345386,0.00019192,2]
[364910843,1749295836565,-207.87663381,0.00019267,2]
[364910844,1749295836575,-181.19807031,0.0001934,2]
[364910845,1749295836585,-500.0,0.00019451,2]
[364910846,1749295836595,-440.0,0.00019452,2]
[364910847,1749295836605,-440.0,0.00019452,2]
[364910848,1749295836616,-378.72962199,0.00019452,2]
[364910849,1749295836625,-440.0,0.00019452,2]
[364910850,1749295836636,-440.0,0.00019452,2]
[364910851,1749295836646,-440.0,0.00019452,2]
[364910852,1749295836655,-392.25482467,0.00019452,2]
[364910853,1749295836667,-430.0,0.00019452,2]
[364910854,1749295836678,-430.0,0.00019452,2]
[364910855,1749295836688,-440.0,0.00019452,2]
[364910856,1749295836699,-1478.67,0.00019452,2]
[364910857,1749295836708,-522.18106817,0.00019452,2]
[364910858,1749295836718,-440.0,0.00019452,2]
[364910859,1749295836727,-440.0,0.00019452,2]
[364910860,1749295836737,-440.0,0.00019452,2]
[364910861,1749295836746,-440.0,0.00019452,2]
[364910862,1749295836756,-440.0,0.00019452,2]
[364910863,1749295836765,-440.0,0.00019452,2]
[364910864,1749295836775,-440.0,0.00019452,2]
[364910865,1749295836784,-440.0,0.00019452,2]
[364910866,1749295836794,-440.0,0.00019452,2]
[364910867,1749295836803,-440.0,0.00019452,2]
[364910868,1749295836812,-440.0,0.00019452,2]
[364910869,1749295836822,-440.0,0.00019452,2]
[364910870,1749295836831,-493.84,0.00019452,2]
[364910871,1749295836841,-784.26,0.00019452,2]
[364910872,1749295836851,-440.0,0.00019452,2]
[364910873,1749295836860,-440.0,0.00019452,2]
[364910874,1749295836869,-440.0,0.00019452,2]
[364910875,1749295836879,-440.0,0.00019452,2]
[364910876,1749295836889,-440.0,0.00019452,2]
[364910877,1749295836899,-440.0,0.00019452,2]
[364910878,1749295836909,-380.0,0.00019452,2]
[364910879,1749295836919,-440.0,0.00019452,2]
[364910880,1749295836928,-440.0,0.00019452,2]
[364910881,1749295836939,-295.22,0.00019452,2]
[364910882,1749295836949,-440.0,0.00019452,2]
[364910883,1749295836959,-1252.27,0.00019452,2]
[364910884,1749295836969,-440.0,0.00019452,2]
[364910885,1749295836978,-440.0,0.00019452,2]
[364910886,1749295836988,-1030.27,0.00019452,2]
[364910887,1749295836997,-350.0,0.00019452,2]
[364910888,1749295837008,-472.08,0.00019452,2]
[364910889,1749295837018,-440.0,0.00019452,2]
[364910890,1749295837028,-498.09,0.00019452,2]
[364910891,1749295837038,-173.70635979,0.00019452,2]
[364910892,1749295837051,-695.59,0.00019452,2]
[364910893,1749295837064,-440.0,0.00019452,2]
[364910894,1749295837074,-566.43,0.00019452,2]
[364910895,1749295837084,-1169.88,0.00019452,2]
[364910896,1749295837096,-440.0,0.00019452,2]
[364910897,1749295837106,-440.0,0.00019452,2]
[364910898,1749295837115,-440.0,0.00019452,2]
[364910899,1749295837126,-770.23,0.00019452,2]
[364910900,1749295837137,-440.0,0.00019452,2]
[364910901,1749295837147,-440.0,0.00019452,2]
[364910902,1749295837156,-982.15,0.00019452,2]
[364910903,1749295837167,-440.0,0.00019452,2]
[364910904,1749295837177,-440.0,0.00019452,2]
[364910905,1749295837188,-440.0,0.00019452,2]
[364910906,1749295837198,-440.0,0.00019452,2]
[364910907,1749295837210,-525.1,0.00019452,2]
[364910908,1749295837219,-440.0,0.00019452,2]
[364910909,1749295837229,-446.5,0.00019452,2]
[364910910,1749295837239,-161.35698641,0.00019458,2]
[364910911,1749295837249,-500.0,0.00019673,2]
[364910912,1749295837259,-500.0,0.00019673,2]
[364910913,1749295837270,-500.86300263,0.00019673,2]
[364910914,1749295837279,-500.0,0.00019673,2]
[364910915,1749295837289,-500.0,0.00019673,2]
[364910916,1749295837303,-500.0,0.00019676,2]
[364910917,1749295837312,-500.0,0.00019676,2]
[364910918,1749295837323,-440.0,0.00019726,2]
[364910919,1749295837333,-440.0,0.00019726,2]
[364910920,1749295837343,-440.0,0.00019726,2]
[364910921,1749295837353,-440.0,0.00019726,2]
[364910922,1749295837364,-440.0,0.00019726,2]
[364910923,1749295837374,-1478.67,0.00019726,2]
[364910924,1749295837384,-440.0,0.00019726,2]
[364910925,1749295837393,-440.0,0.00019726,2]
[364910926,1749295837403,-440.0,0.00019726,2]
[364910927,1749295837413,-440.0,0.00019726,2]
[364910928,1749295837422,-440.0,0.00019726,2]
[364910929,1749295837432,-440.0,0.00019726,2]
[364910930,1749295837442,-440.0,0.00019726,2]
[364910931,1749295837451,-440.0,0.00019726,2]
[364910932,1749295837462,-440.0,0.00019726,2]
[364910933,1749295837471,-440.0,0.00019726,2]
[364910934,1749295837481,-493.84,0.00019726,2]
[364910935,1749295837491,-784.26,0.00019726,2]
[364910936,1749295837501,-440.0,0.00019726,2]
[364910937,1749295837511,-440.0,0.00019726,2]
[364910938,1749295837520,-440.0,0.00019726,2]
[364910939,1749295837530,-440.0,0.00019726,2]
[364910940,1749295837539,-440.0,0.00019726,2]
[364910941,1749295837549,-440.0,0.00019726,2]
[364910942,1749295837558,-440.0,0.00019726,2]
[364910943,1749295837568,-440.0,0.00019726,2]
[364910944,1749295837578,-440.0,0.00019726,2]
[364910945,1749295837588,-1252.27,0.00019726,2]
[364910946,1749295837597,-440.0,0.00019726,2]
[364910947,1749295837607,-440.0,0.00019726,2]
[364910948,1749295837617,-1030.27,0.00019726,2]
[364910949,1749295837626,-472.08,0.00019726,2]
[364910950,1749295837635,-440.0,0.00019726,2]
[364910951,1749295837645,-498.09,0.00019726,2]
[364910952,1749295837655,-695.59,0.00019726,2]
[364910953,1749295837665,-566.43,0.00019726,2]
[364910954,1749295837677,-1169.88,0.00019726,2]
[364910955,1749295837688,-440.0,0.00019726,2]
[364910956,1749295837698,-440.0,0.00019726,2]
[364910957,1749295837707,-440.0,0.00019726,2]
[364910958,1749295837718,-770.23,0.00019726,2]
[364910959,1749295837728,-440.0,0.00019726,2]
[364910960,1749295837738,-440.0,0.00019726,2]
[364910961,1749295837748,-982.15,0.00019726,2]
[364910962,1749295837759,-440.0,0.00019726,2]
[364910963,1749295837769,-440.0,0.00019726,2]
[364910964,1749295837779,-554.16392308,0.00019726,2]
[364910965,1749295837790,-525.1,0.00019726,2]
[364910966,1749295837799,-440.0,0.00019726,2]
[364910967,1749295837809,-446.5,0.00019726,2]
[364910968,1749295837819,-500.0,0.00019779,2]
[364910969,1749295837829,-158.91657375,0.00019779,2]
[364910970,1749295837840,-500.0,0.00019779,2]
[364910971,1749295837849,-500.0,0.00019779,2]
[364910972,1749295837859,-500.0,0.00019779,2]
[364910973,1749295837869,-500.0,0.00019779,2]
[364910974,1749295837879,-500.0,0.00019779,2]
[364910975,1749295837889,-500.0,0.00019779,2]
[364910976,1749295837899,-440.0,0.0001978,2]
[364910977,1749295837909,-440.0,0.0001978,2]
[364910978,1749295837919,-440.0,0.0001978,2]
[364910979,1749295837928,-450.0,0.0001978,2]
[364910980,1749295837938,-400.0,0.0001978,2]
[364910981,1749295837947,-440.0,0.0001978,2]
[364910982,1749295837959,-430.0,0.0001978,2]
[364910983,1749295837969,-430.0,0.0001978,2]
[364910984,1749295837979,-440.0,0.0001978,2]
[364910985,1749295837989,-440.0,0.0001978,2]
[364910986,1749295837999,-420.0,0.0001978,2]
[364910988,1749295838008,-440.0,0.0001978,2]
[364910989,1749295838018,-440.0,0.0001978,2]
[364910990,1749295838028,-440.0,0.0001978,2]
[364910991,1749295838038,-430.0,0.0001978,2]
[364910992,1749295838047,-440.0,0.0001978,2]
[364910993,1749295838057,-440.0,0.0001978,2]
[364910994,1749295838066,-440.0,0.0001978,2]
[364910996,1749295838076,-430.0,0.0001978,2]
[364910997,1749295838085,-440.0,0.0001978,2]
[364910998,1749295838095,-440.0,0.0001978,2]
[364910999,1749295838105,-444.11085541,0.0001978,2]
[364911000,1749295838115,-440.0,0.0001978,2]
[364911001,1749295838124,-440.0,0.0001978,2]
[364911002,1749295838134,-430.0,0.0001978,2]
[364911003,1749295838143,-440.0,0.0001978,2]
[364911004,1749295838153,-440.0,0.0001978,2]
[364911005,1749295838162,-430.0,0.0001978,2]
[364911007,1749295838172,-440.0,0.0001978,2]
[364911009,1749295838182,-440.0,0.0001978,2]
[364911011,1749295838191,-440.0,0.0001978,2]
[364911012,1749295838202,-440.0,0.0001978,2]
[364911014,1749295838211,-430.72998668,0.0001978,2]
[364911017,1749295838222,-440.0,0.0001978,2]
[364911019,1749295838233,-446.74968782,0.0001978,2]
[364911021,1749295838242,-470.0,0.0001978,2]
[364911023,1749295838252,-452.1441177,0.0001978,2]
[364911025,1749295838261,-440.0,0.0001978,2]
[364911026,1749295838271,-310.34667501,0.0001978,2]
[364911028,1749295838280,-450.0,0.0001978,2]
[364911031,1749295838290,-440.05013697,0.0001978,2]
[364911032,1749295838304,-430.70265601,0.0001978,2]
[364911034,1749295838314,-440.0,0.0001978,2]
[364911036,1749295838324,-430.0,0.0001978,2]
[364911038,1749295838333,-433.18924757,0.0001978,2]
[364911040,1749295838343,-230.0,0.0001978,2]
[364911042,1749295838353,-440.0,0.0001978,2]
[364911044,1749295838364,-440.0,0.0001978,2]
[364911046,1749295838374,-440.0,0.0001978,2]
[364911048,1749295838383,-440.0,0.0001978,2]
[364911049,1749295838393,-401.38942698,0.0001978,2]
[364911051,1749295838403,-430.0,0.0001978,2]
[364911053,1749295838414,-182.09002681,0.0001978,2]
[364911055,1749295838423,-440.0,0.0001978,2]
[364911057,1749295838433,-430.0,0.0001978,2]
[364911059,1749295838443,-388.79222278,0.0001978,2]
[364911060,1749295838453,-431.84762986,0.0001978,2]
[364911062,1749295838463,-440.0,0.0001978,2]
[364911064,1749295838473,-430.0,0.0001978,2]
[364911066,1749295838483,-430.0,0.0001978,2]
[364911067,1749295838493,-341.82279311,0.0001978,2]
[364911069,1749295838503,-170.0,0.0001978,2]
[364911071,1749295838513,-450.0,0.0001978,2]
[364911073,1749295838523,-430.0,0.0001978,2]
[364911075,1749295838533,-440.0,0.0001978,2]
[364911077,1749295838543,-440.0,0.0001978,2]
[364911079,1749295838553,-440.0,0.0001978,2]
[364911081,1749295838563,-440.0,0.0001978,2]
[364911083,1749295838573,-400.50190647,0.0001978,2]
[364911086,1749295838584,-436.73781771,0.0001978,2]
[364911088,1749295838595,-430.0,0.0001978,2]
[364911090,1749295838605,-430.0,0.0001978,2]
[364911092,1749295838614,-430.0,0.0001978,2]
[364911094,1749295838624,-440.0,0.0001978,2]
[364911096,1749295838633,-430.0,0.0001978,2]
[364911098,1749295838643,-430.0,0.0001978,2]
[364911100,1749295838652,-420.0,0.0001978,2]
[364911102,1749295838662,-450.0,0.0001978,2]
[364911104,1749295838671,-430.0,0.0001978,2]
[364911106,1749295838681,-440.0,0.0001978,2]
[364911108,1749295838691,-440.0,0.0001978,2]
[364911109,1749295838700,-436.32319039,0.0001978,2]
[364911112,1749295838710,-440.0,0.0001978,2]
[364911115,1749295838719,-484.01,0.0001978,2]
[364911118,1749295838729,-430.0,0.0001978,2]
[364911120,1749295838739,-430.0,0.0001978,2]
[364911122,1749295838748,-440.0,0.0001978,2]
[364911124,1749295838759,-500.0,0.0001978,2]
[364911126,1749295838768,-430.0,0.0001978,2]
[364911128,1749295838778,-430.0,0.0001978,2]
[364911130,1749295838787,-440.0,0.0001978,2]
[364911132,1749295838797,-400.53216153,0.0001978,2]
[364911134,1749295838806,-440.0,0.0001978,2]
[364911136,1749295838816,-235.30041474,0.0001978,2]
[364911138,1749295838826,-430.0,0.0001978,2]
[364911140,1749295838835,-430.0,0.0001978,2]
[364911143,1749295838846,-400.0,0.0001978,2]
[364911144,1749295838856,-440.0,0.0001978,2]
[364911147,1749295838867,-440.0,0.0001978,2]
[364911149,1749295838876,-430.0,0.0001978,2]
[364911151,1749295838886,-440.0,0.0001978,2]
[364911153,1749295838896,-432.86559198,0.0001978,2]
[364911155,1749295838907,-440.0,0.0001978,2]
[364911157,1749295838916,-293.12703312,0.0001978,2]
[364911159,1749295838926,-430.0,0.0001978,2]
[364911161,1749295838936,-400.0,0.0001978,2]
[364911163,1749295838945,-430.0,0.0001978,2]
[364911165,1749295838955,-301.82324122,0.0001978,2]
[364911167,1749295838966,-440.0,0.0001978,2]
[364911169,1749295838975,-434.02834156,0.0001978,2]
[364911171,1749295838985,-440.0,0.0001978,2]
[364911173,1749295838996,-433.0,0.0001978,2]
[364911175,1749295839006,-440.0,0.0001978,2]
[364911177,1749295839015,-440.0,0.0001978,2]
[364911179,1749295839025,-433.30835374,0.0001978,2]
[364911181,1749295839035,-440.0,0.0001978,2]
[364911183,1749295839045,-430.0,0.0001978,2]
[364911185,1749295839055,-440.0,0.0001978,2]
[364911187,1749295839065,-342.11517353,0.0001978,2]
[364911189,1749295839077,-440.0,0.0001978,2]
[364911191,1749295839087,-440.0,0.0001978,2]
[364911193,1749295839097,-401.06480207,0.0001978,2]
[364911195,1749295839107,-440.0,0.0001978,2]
[364911197,1749295839116,-430.0,0.0001978,2]
[364911199,1749295839126,-440.0,0.0001978,2]
[364911201,1749295839136,-431.5578925,0.0001978,2]
[364911203,1749295839147,-440.0,0.0001978,2]
[364911205,1749295839157,-440.0,0.0001978,2]
[364911207,1749295839166,-440.0,0.0001978,2]
[364911209,1749295839177,-430.84176658,0.0001978,2]
[364911212,1749295839188,-430.0,0.0001978,2]
[364911214,1749295839198,-440.0,0.0001978,2]
[364911215,1749295839208,-430.0,0.0001978,2]
[364911218,1749295839218,-487.43603934,0.0001978,2]
[364911220,1749295839228,-440.0,0.0001978,2]
[364911222,1749295839236,-430.0,0.0001978,2]
[364911224,1749295839246,-440.0,0.0001978,2]
[364911226,1749295839255,-430.0,0.0001978,2]
[364911228,1749295839265,-441.75948276,0.0001978,2]
[364911230,1749295839274,-430.0,0.0001978,2]
[364911232,1749295839284,-440.0,0.0001978,2]
[364911234,1749295839294,-440.0,0.0001978,2]
[364911236,1749295839308,-440.0,0.0001978,2]
[364911238,1749295839318,-430.0,0.0001978,2]
[364911240,1749295839328,-430.41012353,0.0001978,2]
[364911242,1749295839339,-430.0,0.0001978,2]
[364911255,1749295839449,-430.0,0.0001978,2]
[364911258,1749295839475,-446.13939001,0.0001978,2]
[364911260,1749295839486,-430.0,0.0001978,2]
[364911262,1749295839496,-430.0,0.0001978,2]
[364911264,1749295839506,-440.0,0.0001978,2]
[364911266,1749295839515,-430.0,0.0001978,2]
[364911267,1749295839525,-440.0,0.0001978,2]
[364911268,1749295839535,-440.0,0.0001978,2]
[364911269,1749295839545,-440.0,0.0001978,2]
[364911270,1749295839555,-440.0,0.0001978,2]
[364911271,1749295839564,-470.0,0.0001978,2]
[364911272,1749295839574,-430.0,0.0001978,2]
[364911273,1749295839583,-440.0,0.0001978,2]
[364911274,1749295839594,-450.0,0.0001978,2]
[364911275,1749295839604,-440.0,0.0001978,2]
[364911276,1749295839613,-470.0,0.0001978,2]
[364911277,1749295839623,-440.0,0.0001978,2]
[364911278,1749295839633,-440.0,0.0001978,2]
[364911279,1749295839642,-505.11932332,0.0001978,2]
[364911280,1749295839652,-440.0,0.0001978,2]
[364911281,1749295839661,-510.38329689,0.0001978,2]
[364911282,1749295839671,-440.0,0.0001978,2]
[364911283,1749295839681,-440.0,0.0001978,2]
[364911284,1749295839691,-430.0,0.0001978,2]
[364911285,1749295839701,-350.0,0.0001978,2]
[364911286,1749295839711,-430.0,0.0001978,2]
[364911287,1749295839721,-430.0,0.0001978,2]
[364911288,1749295839731,-401.9812149,0.0001978,2]
[364911289,1749295839741,-440.0,0.0001978,2]
[364911290,1749295839750,-430.0,0.0001978,2]
[364911291,1749295839760,-400.21125402,0.0001978,2]
[364911292,1749295839771,-400.66363167,0.0001978,2]
[364911293,1749295839780,-430.0,0.0001978,2]
[364911294,1749295839790,-440.0,0.0001978,2]
[364911295,1749295839799,-430.0,0.0001978,2]
[364911296,1749295839809,-430.0,0.0001978,2]
[364911297,1749295839819,-440.0,0.0001978,2]
[364911298,1749295839829,-400.89505265,0.0001978,2]
[364911299,1749295839839,-241.4768731,0.0001978,2]
[364911300,1749295839849,-430.0,0.0001978,2]
[364911301,1749295839859,-430.0,0.0001978,2]
[364911302,1749295839871,-440.0,0.0001978,2]
[364911303,1749295839881,-440.0,0.0001978,2]
[364911304,1749295839892,-440.0,0.0001978,2]
[364911305,1749295839902,-430.0,0.0001978,2]
[364911306,1749295839912,-440.0,0.0001978,2]
[364911307,1749295839922,-464.73410924,0.0001978,2]
[364911308,1749295839931,-420.0,0.0001978,2]
[364911309,1749295839941,-430.0,0.0001978,2]
[364911310,1749295839950,-244.25041939,0.0001978,2]
[364911311,1749295839961,-430.0,0.0001978,2]
[364911312,1749295839970,-440.0,0.0001978,2]
[364911314,1749295839979,-440.0,0.0001978,2]
[364911315,1749295839990,-440.0,0.0001978,2]
[364911316,1749295839999,-430.0,0.0001978,2]
[364911317,1749295840009,-430.0,0.0001978,2]
[364911318,1749295840018,-430.0,0.0001978,2]
[364911319,1749295840028,-430.0,0.0001978,2]
[364911320,1749295840038,-430.0,0.0001978,2]
[364911321,1749295840047,-440.0,0.0001978,2]
[364911322,1749295840058,-440.0,0.0001978,2]
[364911323,1749295840067,-506.67164242,0.0001978,2]
[364911324,1749295840077,-440.0,0.0001978,2]
[364911325,1749295840087,-440.0,0.0001978,2]
[364911326,1749295840097,-440.0,0.0001978,2]
[364911327,1749295840107,-440.0,0.0001978,2]
[364911328,1749295840117,-345.89486169,0.0001978,2]
[364911329,1749295840127,-430.0,0.0001978,2]
[364911330,1749295840137,-440.0,0.0001978,2]
[364911331,1749295840147,-430.0,0.0001978,2]
[364911332,1749295840158,-440.0,0.0001978,2]
[364911334,1749295840167,-430.0,0.0001978,2]
[364911335,1749295840177,-440.0,0.0001978,2]
[364911336,1749295840187,-460.0,0.0001978,2]
[364911338,1749295840198,-440.0,0.0001978,2]
[364911339,1749295840208,-281.41049981,0.0001978,2]
[364911341,1749295840218,-440.0,0.0001978,2]
[364911343,1749295840228,-430.0,0.0001978,2]
[364911345,1749295840239,-430.67519347,0.0001978,2]
[364911347,1749295840249,-440.0,0.0001978,2]
[364911348,1749295840259,-430.0,0.0001978,2]
[364911349,1749295840269,-440.0,0.0001978,2]
[364911350,1749295840279,-440.0,0.0001978,2]
[364911351,1749295840288,-430.426035,0.0001978,2]
[364911352,1749295840299,-440.0,0.0001978,2]
[364911353,1749295840311,-430.0,0.0001978,2]
[364911354,1749295840321,-440.0,0.0001978,2]
[364911355,1749295840331,-440.0,0.0001978,2]
[364911356,1749295840342,-430.0,0.0001978,2]
[364911358,1749295840354,-500.0,0.00019781,2]
[364911359,1749295840365,-500.0,0.00019781,2]
[364911360,1749295840375,-500.0,0.00019781,2]
[364911361,1749295840385,-500.0,0.00019781,2]
[364911362,1749295840395,-549.4,0.00019781,2]
[364911363,1749295840405,-160.0,0.00019781,2]
[364911364,1749295840415,-500.0,0.00019781,2]
[364911365,1749295840424,-500.0,0.00019781,2]
[364911366,1749295840434,-380.32010443,0.00019782,2]
[364911367,1749295840444,-500.0,0.00019785,2]
[364911368,1749295840454,-500.0,0.00019786,2]
[364911369,1749295840464,-500.0,0.00019787,2]
[364911370,1749295840474,-401.27644943,0.00019788,2]
[364911371,1749295840484,-257.35692552,0.00019788,2]
[364911372,1749295840494,-440.0,0.00019788,2]
[364911373,1749295840504,-151.0,0.0001979,2]
[364911374,1749295840514,-1051.68157157,0.000199,2]
[364911375,1749295840525,-352.0,0.00019937,2]
[364911376,1749295840536,-151.14368067,0.00019976,2]
[364911382,1749295840671,-348.85631933,0.00019976,2]
[364911383,1749295840682,-440.0,0.0002,2]
[364911384,1749295840692,-440.0,0.0002,2]
[364911385,1749295840703,-515.86830295,0.0002,2]
[364911386,1749295840713,-1478.67,0.0002,2]
[364911387,1749295840722,-440.0,0.0002,2]
[364911388,1749295840732,-440.0,0.0002,2]
[364911389,1749295840743,-440.0,0.0002,2]
[364911390,1749295840752,-440.0,0.0002,2]
[364911392,1749295840762,-440.0,0.0002,2]
[364911393,1749295840771,-440.0,0.0002,2]
[364911394,1749295840781,-440.0,0.0002,2]
[364911395,1749295840791,-440.0,0.0002,2]
[364911396,1749295840801,-440.0,0.0002,2]
[364911397,1749295840810,-493.84,0.0002,2]
[364911398,1749295840820,-784.26,0.0002,2]
[364911399,1749295840829,-440.0,0.0002,2]
[364911400,1749295840839,-440.0,0.0002,2]
[364911401,1749295840849,-440.0,0.0002,2]
[364911402,1749295840858,-440.0,0.0002,2]
[364911403,1749295840868,-440.0,0.0002,2]
[364911404,1749295840877,-440.0,0.0002,2]
[364911405,1749295840887,-440.0,0.0002,2]
[364911406,1749295840898,-440.0,0.0002,2]
[364911407,1749295840909,-440.0,0.0002,2]
[364911408,1749295840919,-1252.27,0.0002,2]
[364911409,1749295840930,-440.0,0.0002,2]
[364911410,1749295840939,-440.0,0.0002,2]
[364911411,1749295840950,-1030.27,0.0002,2]
[364911412,1749295840961,-472.08,0.0002,2]
[364911413,1749295840971,-440.0,0.0002,2]
[364911414,1749295840981,-498.09,0.0002,2]
[364911415,1749295840990,-695.59,0.0002,2]
[364911416,1749295841000,-566.43,0.0002,2]
[364911417,1749295841009,-1169.88,0.0002,2]
[364911418,1749295841020,-440.0,0.0002,2]
[364911421,1749295841029,-440.0,0.0002,2]
[364911424,1749295841039,-440.0,0.0002,2]
[364911426,1749295841049,-770.23,0.0002,2]
[364911428,1749295841058,-440.0,0.0002,2]
[364911430,1749295841068,-440.0,0.0002,2]
[364911432,1749295841078,-982.15,0.0002,2]
[364911433,1749295841091,-440.0,0.0002,2]
[364911434,1749295841101,-440.0,0.0002,2]
[364911435,1749295841111,-525.1,0.0002,2]
[364911437,1749295841120,-440.0,0.0002,2]
[364911438,1749295841130,-446.5,0.0002,2]
[364911439,1749295841139,-500.0,0.00020053,2]
[364911440,1749295841149,-440.0,0.00020054,2]
[364911441,1749295841160,-358.54206887,0.00020054,2]
[364911442,1749295841170,-380.0,0.00020054,2]
[364911443,1749295841180,-380.0,0.00020054,2]
[364911444,1749295841190,-440.0,0.00020054,2]
[364911445,1749295841201,-440.0,0.00020054,2]
[364911446,1749295841211,-440.0,0.00020054,2]
[364911447,1749295841221,-440.0,0.00020054,2]
[364911448,1749295841231,-451.44,0.00020054,2]
[364911449,1749295841241,-270.5044559,0.00020054,2]
[364911450,1749295841250,-440.0,0.00020054,2]
[364911451,1749295841260,-440.0,0.00020054,2]
[364911452,1749295841270,-425.24736332,0.00020054,2]
[364911453,1749295841280,-440.0,0.00020054,2]
[364911454,1749295841289,-370.0,0.00020054,2]
[364911455,1749295841299,-440.0,0.00020054,2]
[364911456,1749295841311,-440.0,0.00020054,2]
[364911457,1749295841320,-440.0,0.00020054,2]
[364911458,1749295841330,-430.0,0.00020054,2]
[364911459,1749295841339,-211.56649641,0.00020054,2]